[Event "Lueneburger Schachfestival GM 2019"]
[Site "Lueneburg"]
[Date "2019.08.06"]
[Round "5.3"]
[White "Korley, Kassa"]
[Black "Sriram, Jha"]
[Result "1/2-1/2"]
[ECO "D90"]
[WhiteElo "2437"]
[BlackElo "2381"]
[Annotator "NA"]
[PlyCount "166"]
[EventDate "2019.08.02"]
[EventType "tourn"]
[EventCountry "GER"]
[SourceTitle "playchess.com"]
[Source "ChessBase"]
[SourceQuality "1"]
[TimeControl "40/5400+30:1800+30"]

1. d4 {[%emt 0:00:00]} d5 {[%emt 0:08:45]} 2. Nf3 {[%emt 0:00:00]} Nf6 {[%emt 0:00:32]} 3. c4 {[%emt 0:00:07]} c6 {[%emt 0:00:07]} 4. Nc3 {[%emt 0:00:44]} g6 {[%emt 0:03:51]} 5. cxd5 {[%emt 0:02:23]} cxd5 {[%emt 0:00:02]} 6. Bf4 {[%emt 0:00:05]} Nc6 {[%emt 0:00:09]} 7. e3 {[%emt 0:00:11]} Bg7 {[%emt 0:00:02]} 8. Be2 {[%emt 0:06:07]} O-O {[%emt 0:02:16]} 9. O-O {[%emt 0:00:03]} Nh5 {[%emt 0:02:54]} 10. Be5 {[%emt 0:00:04]} f6 {[%emt 0:06:38]} 11. Bg3 {[%emt 0:00:02]} Nxg3 {[%emt 0:00:25]} 12. hxg3 {[%emt 0:00:01]} Be6 {[%emt 0:01:07]} 13. Rc1 {[%emt 0:02:05]} Rc8 {[%emt 0:02:07]} 14. a3 {[%emt 0:10:10]} Bf7 {[%emt 0:07:40]} 15. Qb3 {[%emt 0:05:18]} Qd7 {[%emt 0:07:59]} 16. Rfd1 {[%emt 0:00:04]} Rfd8 {[%emt 0:06:23]} 17. Na4 {[%emt 0:00:57]} Na5 {[%emt 0:12:03]} 18. Qb4 {[%emt 0:01:28]} Nc6 {[%emt 0:04:58]} 19. Qb5 {[%emt 0:01:49]} b6 {[%emt 0:01:09]} 20. Nc3 {[%emt 0:01:25]} Na5 {[%emt 0:06:00]} 21. Qxd7 {[%emt 0:00:12]} Rxd7 {[%emt 0:00:01]} 22. Ba6 {[%emt 0:00:08]} Rcd8 {[%emt 0:01:55]} 23. Nb5 {[%emt 0:02:10]} e5 {[%emt 0:04:35]} 24. Rc3 {[%emt 0:02:54]} e4 {[%emt 0:04:27]} 25. Nd2 {[%emt 0:00:05]} Bf8 {[%emt 0:02:26]} 26. Rdc1 {[%emt 0:03:20]} Nc4 {[%emt 0:00:46]} 27. Nxc4 {[%emt 0:01:14]} dxc4 {[%emt 0:00:02]} 28. R3c2 {[%emt 0:00:25]} f5 {[%emt 0:02:18]} 29. Nc3 {[%emt 0:04:44]} Rb8 {[%emt 0:04:47]} 30. Bb5 {[%emt 0:02:39]} Rc7 {[%emt 0:00:01]} 31. Nd1 {[%emt 0:00:10]} Kg7 {[%emt 0:01:01]} 32. a4 {[%emt 0:02:20]} Bb4 {[%emt 0:02:14]} 33. Nc3 {[%emt 0:00:57]} h5 {[%emt 0:02:52]} 34. Na2 {[%emt 0:01:27]} Bd6 {[%emt 0:00:45]} 35. Ba6 {[%emt 0:01:13]} Kf6 {[%emt 0:01:10]} 36. Rc3 {[%emt 0:00:09]} Be8 {[%emt 0:01:20]} 37. Bb5 {[%emt 0:00:56]} Bxb5 {[%emt 0:00:46]} 38. axb5 {[%emt 0:00:02]} Rbc8 {[%emt 0:00:25]} 39. R3c2 {[%emt 0:01:06]} Ke6 {[%emt 0:00:05]} 40. Kf1 {[%emt 0:00:53]} Kd5 {[%emt 0:01:44]} 41. Ke2 {[%emt 0:30:30]} Ke6 {[%emt 0:30:30]} 42. Ra1 {[%emt 0:00:27]} Ra8 {[%emt 0:01:06]} 43. Nc3 {[%emt 0:01:14]} Bb4 {[%emt 0:00:00]} 44. Ra4 {[%emt 0:00:00]} Bxc3 {[%emt 0:00:00]} 45. Rxc3 {[%emt 0:00:00]} Kd5 {[%emt 0:00:00]} 46. Rca3 {[%emt 0:00:00]} g5 {[%emt 0:00:00]} 47. Ra6 {[%emt 0:00:00]} Rb7 {[%emt 0:00:00]} 48. Kd2 {[%emt 0:00:00]} f4 {[%emt 0:00:00]} 49. gxf4 {[%emt 0:00:00]} gxf4 {[%emt 0:00:00]} 50. exf4 {[%emt 0:00:00]} Kxd4 {[%emt 0:00:00]} 51. Rh3 {[%emt 0:00:00]} Rg8 {[%emt 0:00:00]} 52. g3 {[%emt 0:00:00]} Rh7 {[%emt 0:00:00]} 53. Ra1 {[%emt 0:00:00]} e3+ {[%emt 0:00:00]} 54. fxe3+ {[%emt 0:00:00]} Ke4 {[%emt 0:00:00]} 55. Ke2 {[%emt 0:00:00]} h4 {[%emt 0:00:00]} 56. Rd1 {[%emt 0:02:51]} Rxg3 {[%emt 0:00:00]} 57. Rd4+ {[%emt 0:00:03]} Kf5 {[%emt 0:00:00]} 58. Rxg3 {[%emt 0:00:07]} hxg3 {[%emt 0:00:00]} 59. Kf3 {[%emt 0:00:12]} Rh2 {[%emt 0:00:00]} 60. Rd6 {[%emt 0:02:06]} Rf2+ {[%emt 0:00:47]} 61. Kxg3 {[%emt 0:00:03]} Rxb2 {[%emt 0:00:38]} 62. Kf3 {[%emt 0:00:07]} Rb3 {[%emt 0:00:01]} 63. Rc6 {[%emt 0:05:46]} Rc3 {[%emt 0:00:44]} 64. Rc7 {[%emt 0:01:57]} Ke6 {[%emt 0:03:02]} 65. Rxa7 {[%emt 0:04:13]} Rb3 {[%emt 0:00:10]} 66. Rc7 {[%emt 0:00:24]} Kd5 {[%emt 0:00:01]} 67. f5 {[%emt 0:00:20]} Ke5 {[%emt 0:00:43]} 68. Kg4 {[%emt 0:02:01]} Rxb5 {[%emt 0:02:41]} 69. Rxc4 {[%emt 0:06:51]} Rb1 {[%emt 0:00:05]} 70. Kg5 {[%emt 0:00:39]} Rg1+ {[%emt 0:01:18]} 71. Rg4 {[%emt 0:00:21]} Rf1 {[%emt 0:01:41]} 72. e4 {[%emt 0:01:59]} b5 {[%emt 0:00:49]} 73. Kg6 {[%emt 0:00:40]} b4 {[%emt 0:00:21]} 74. Rg3 {[%emt 0:01:11]} Rf4 {[%emt 0:01:13]} 75. Kg7 {[%emt 0:06:05]} Kxe4 {[%emt 0:00:47]} 76. f6 {[%emt 0:00:08]} Kd4 {[%emt 0:00:22]} 77. f7 {[%emt 0:00:04]} Kc4 {[%emt 0:00:16]} 78. Rg6 {[%emt 0:01:00]} b3 {[%emt 0:00:26]} 79. Rc6+ {[%emt 0:00:21]} Kd4 {[%emt 0:00:38]} 80. Rb6 {[%emt 0:00:46]} Kc3 {[%emt 0:00:09]} 81. f8=Q {[%emt 0:00:07]} Rxf8 {[%emt 0:00:04]} 82. Kxf8 {[%emt 0:00:09]} b2 {[%emt 0:00:01]} 83. Rxb2 {[%emt 0:00:05]} Kxb2 {[%emt 0:00:01]} 1/2-1/2

[Event "Lueneburger Schachfestival GM 2019"]
[Site "Lueneburg"]
[Date "2019.08.06"]
[Round "5.4"]
[White "Polster, Christian"]
[Black "Ovsejevitsch, Sergei"]
[Result "0-1"]
[ECO "D02"]
[WhiteElo "2254"]
[BlackElo "2590"]
[Annotator "ChessBase"]
[PlyCount "57"]
[EventDate "2019.08.02"]
[EventType "tourn"]
[EventCountry "GER"]
[SourceTitle "playchess.com"]
[Source "ChessBase"]
[SourceQuality "1"]
[TimeControl "40/5400+30:1800+30"]

1. d4 {[%emt 0:00:00]} Nf6 {[%emt 0:00:00]} 2. Bf4 {[%emt 0:00:00]} d5 {[%emt 0:02:23]} 3. e3 {[%emt 0:00:00]} c5 {[%emt 0:01:42]} 4. Nf3 {[%emt 0:00:25]} e6 {[%emt 0:04:31]} 5. Nbd2 {[%emt 0:01:47]} Bd6 {[%emt 0:01:06]} 6. Bg3 {[%emt 0:00:15]} O-O {[%emt 0:01:28]} 7. dxc5 {[%emt 0:03:12]} Bxc5 {[%emt 0:00:39]} 8. Bd3 {[%emt 0:00:59]} Nc6 {[%emt 0:02:02]} 9. O-O {[%emt 0:01:42]} Be7 {[%emt 0:03:42]} 10. Ne5 {[%emt 0:17:55]} Nxe5 {[%emt 0:07:23]} 11. Bxe5 {[%emt 0:02:37]} Nd7 {[%emt 0:01:41]} 12. Bg3 {[%emt 0:05:09]} Nc5 {[%emt 0:01:00]} 13. Be2 {[%emt 0:12:31]} Bf6 {[%emt 0:01:51]} 14. Rb1 {[%emt 0:01:18]} e5 {[%emt 0:06:33]} 15. c4 {[%emt 0:12:22]} Bf5 {[%emt 0:03:55]} 16. Rc1 {[%emt 0:12:14]} d4 {[%emt 0:11:55]} 17. exd4 {[%emt 0:02:57]} Qxd4 {[%emt 0:01:23]} 18. b4 {[%emt 0:09:40]} Rfd8 {[%emt 0:07:21]} 19. bxc5 {[%emt 0:05:47]} Qxd2 {[%emt 0:00:11]} 20. Qxd2 {[%emt 0:01:13]} Rxd2 {[%emt 0:00:07]} 21. Rfe1 {[%emt 0:00:15]} Rc8 {[%emt 0:02:58]} 22. Bf3 {[%emt 0:01:19]} Rxc5 {[%emt 0:01:00]} 23. Bxb7 {[%emt 0:00:59]} Be6 {[%emt 0:01:26]} 24. h3 {[%emt 0:02:02]} h5 {[%emt 0:08:09]} 25. a4 {[%emt 0:04:38]} h4 {[%emt 0:00:44]} 26. Bh2 {[%emt 0:00:30]} Ra2 {[%emt 0:00:41]} 27. Bd5 {[%emt 0:01:06]} Bxd5 {[%emt 0:06:01]} 28. cxd5 {[%emt 0:00:02]} Rxd5 {[%emt 0:00:13]} 29. Rc4 {[%emt 0:00:00]} 0-1

[Event "Lueneburger Schachfestival GM 2019"]
[Site "Lueneburg"]
[Date "2019.08.06"]
[Round "5.5"]
[White "Vorobiov, Evgeny E."]
[Black "Koellner, Ruben Gideon"]
[Result "1/2-1/2"]
[ECO "A18"]
[WhiteElo "2578"]
[BlackElo "2315"]
[Annotator "ChessBase"]
[PlyCount "81"]
[EventDate "2019.08.02"]
[EventType "tourn"]
[EventCountry "GER"]
[SourceTitle "playchess.com"]
[Source "ChessBase"]
[SourceQuality "1"]
[TimeControl "40/5400+30:1800+30"]

1. c4 {[%emt 0:00:00]} Nf6 {[%emt 0:00:00]} 2. Nc3 {[%emt 0:00:00]} e6 {[%emt 0:00:00]} 3. e4 {[%emt 0:00:00]} d5 {[%emt 0:00:13]} 4. cxd5 {[%emt 0:00:04]} exd5 {[%emt 0:00:11]} 5. e5 {[%emt 0:00:03]} d4 {[%emt 0:01:15]} 6. exf6 {[%emt 0:02:25]} dxc3 {[%emt 0:00:05]} 7. Bb5+ {[%emt 0:01:18]} c6 {[%emt 0:01:29]} 8. Qe2+ {[%emt 0:01:54]} Be6 {[%emt 0:00:15]} 9. Bc4 {[%emt 0:00:46]} Qxf6 {[%emt 0:26:41]} 10. dxc3 {[%emt 0:01:43]} Bc5 {[%emt 0:05:20]} 11. Nf3 {[%emt 0:03:53]} O-O {[%emt 0:02:15]} 12. Bxe6 {[%emt 0:00:34]} Qxe6 {[%emt 0:07:45]} 13. Qxe6 {[%emt 0:01:04]} fxe6 {[%emt 0:00:02]} 14. O-O {[%emt 0:05:38]} Nd7 {[%emt 0:00:14]} 15. Re1 {[%emt 0:00:20]} Rae8 {[%emt 0:01:35]} 16. Be3 {[%emt 0:00:42]} Rf5 {[%emt 0:09:56]} 17. Rad1 {[%emt 0:09:20]} Rd5 {[%emt 0:00:31]} 18. c4 {[%emt 0:01:58]} Rxd1 {[%emt 0:00:09]} 19. Rxd1 {[%emt 0:00:04]} Re7 {[%emt 0:02:05]} 20. Bxc5 {[%emt 0:08:16]} Nxc5 {[%emt 0:00:19]} 21. Ne5 {[%emt 0:00:31]} g6 {[%emt 0:02:34]} 22. f4 {[%emt 0:04:20]} Kg7 {[%emt 0:00:44]} 23. Kf2 {[%emt 0:00:50]} a5 {[%emt 0:05:17]} 24. Ke3 {[%emt 0:00:38]} Kf8 {[%emt 0:02:04]} 25. Rd8+ {[%emt 0:12:50]} Re8 {[%emt 0:00:21]} 26. Rxe8+ {[%emt 0:10:04]} Kxe8 {[%emt 0:00:10]} 27. Kd4 {[%emt 0:00:04]} Na6 {[%emt 0:05:33]} 28. Nd3 {[%emt 0:00:24]} b6 {[%emt 0:02:39]} 29. c5 {[%emt 0:00:43]} b5 {[%emt 0:00:53]} 30. Ne5 {[%emt 0:00:23]} Nb8 {[%emt 0:00:05]} 31. b3 {[%emt 0:02:52]} Kd8 {[%emt 0:03:47]} 32. g4 {[%emt 0:03:20]} Kc7 {[%emt 0:01:06]} 33. h3 {[%emt 0:01:17]} Kd8 {[%emt 0:01:21]} 34. Nf7+ {[%emt 0:12:39]} Ke7 {[%emt 0:01:53]} 35. Ng5 {[%emt 0:01:50]} h6 {[%emt 0:03:52]} 36. Nf3 {[%emt 0:01:22]} Kf6 {[%emt 0:01:06]} 37. h4 {[%emt 0:02:08]} Nd7 {[%emt 0:00:19]} 38. a4 {[%emt 0:08:38]} b4 {[%emt 0:07:19]} 39. Ne5 {[%emt 0:03:10]} Nxe5 {[%emt 0:00:22]} 40. fxe5+ {[%emt 0:00:05]} Kf7 {[%emt 0:00:24]} 41. Ke4 {[%emt 0:32:20]} 1/2-1/2

[Event "Lueneburger Schachfestival GM 2019"]
[Site "Lueneburg"]
[Date "2019.08.07"]
[Round "6.1"]
[White "Reuker, Jari"]
[Black "Koellner, Ruben Gideon"]
[Result "1-0"]
[ECO "D36"]
[WhiteElo "2403"]
[BlackElo "2315"]
[Annotator "NA"]
[PlyCount "87"]
[EventDate "2019.08.02"]
[EventType "tourn"]
[EventCountry "GER"]
[SourceTitle "playchess.com"]
[Source "ChessBase"]
[SourceQuality "1"]
[TimeControl "40/5400+30:1800+30"]

1. c4 {[%emt 0:02:21]} e6 {[%emt 0:00:00]} 2. Nc3 {[%emt 0:00:10]} d5 {[%emt 0:00:00]} 3. d4 {[%emt 0:00:46]} Nf6 {[%emt 0:00:00]} 4. cxd5 {[%emt 0:00:31]} exd5 {[%emt 0:00:00]} 5. Bg5 {[%emt 0:00:12]} Be7 {[%emt 0:00:00]} 6. e3 {[%emt 0:01:41]} c6 {[%emt 0:00:11]} 7. Bd3 {[%emt 0:00:16]} Nbd7 {[%emt 0:00:19]} 8. Qc2 {[%emt 0:00:46]} h6 {[%emt 0:00:05]} 9. Bh4 {[%emt 0:00:09]} Nh5 {[%emt 0:00:05]} 10. Bxe7 {[%emt 0:00:13]} Qxe7 {[%emt 0:00:04]} 11. Nge2 {[%emt 0:06:58]} Nb6 {[%emt 0:00:21]} 12. O-O {[%emt 0:00:28]} O-O {[%emt 0:01:54]} 13. Rae1 {[%emt 0:03:38]} Be6 {[%emt 0:03:21]} 14. Nc1 {[%emt 0:03:05]} Rad8 {[%emt 0:00:43]} 15. Nb3 {[%emt 0:01:35]} Rfe8 {[%emt 0:00:42]} 16. Nc5 {[%emt 0:01:57]} Bc8 {[%emt 0:00:04]} 17. b4 {[%emt 0:07:27]} a6 {[%emt 0:06:04]} ({Black should try} 17... Nc4 $11) 18. a4 $14 {[%emt 0:03:01]} Qg5 {[%emt 0:01:32]} 19. b5 {[%emt 0:05:08]} axb5 {[%emt 0:00:04]} 20. axb5 {[%emt 0:00:17]} Rd6 {[%emt 0:05:52]} 21. bxc6 {[%emt 0:14:34]} bxc6 {[%emt 0:00:11]} 22. Rb1 {[%emt 0:06:54]} Nd7 {[%emt 0:01:25]} 23. Nxd7 {[%emt 0:01:14]} Bxd7 {[%emt 0:00:14]} 24. Rb7 {[%emt 0:02:25]} g6 {[%emt 0:05:46]} 25. Kh1 {[%emt 0:06:01]} Nf6 {[%emt 0:05:20]} 26. Ne2 {[%emt 0:08:23]} h5 {[%emt 0:04:52]} 27. Nf4 {[%emt 0:05:07]} Nh7 {[%emt 0:00:37]} 28. Rfb1 {[%emt 0:03:12]} Nf8 {[%emt 0:05:07]} 29. Rb8 {[%emt 0:02:19]} Rxb8 {[%emt 0:01:31]} 30. Rxb8 {[%emt 0:00:05]} h4 {[%emt 0:01:57]} 31. h3 {[%emt 0:01:24]} Qh6 {[%emt 0:06:33]} 32. Qc5 {[%emt 0:04:36]} g5 {[%emt 0:03:34]} 33. Nh5 {[%emt 0:05:11]} Re6 {[%emt 0:06:06]} 34. Rxf8+ {[%emt 0:00:44]} Qxf8 {[%emt 0:00:55]} 35. Bh7+ {[%emt 0:00:07]} Kxh7 {[%emt 0:00:12]} 36. Qxf8 {[%emt 0:00:06]} Kg6 {[%emt 0:00:13]} 37. Qg7+ {[%emt 0:00:20]} Kxh5 {[%emt 0:00:06]} 38. Qh7+ {[%emt 0:00:31]} Rh6 {[%emt 0:00:05]} 39. Qxf7+ {[%emt 0:00:04]} Rg6 {[%emt 0:00:03]} 40. Qh7+ {[%emt 0:00:19]} Rh6 {[%emt 0:00:06]} 41. Qxd7 {[%emt 0:30:05]} Rf6 {[%emt 0:30:10]} 42. Qh7+ {[%emt 0:00:36]} Rh6 {[%emt 0:00:06]} 43. Qf7+ {[%emt 0:00:04]} Rg6 {[%emt 0:00:03]} 44. f4 {[%emt 0:00:43]} 1-0

[Event "Lueneburger Schachfestival GM 2019"]
[Site "Lueneburg"]
[Date "2019.08.07"]
[Round "6.2"]
[White "Ovsejevitsch, Sergei"]
[Black "Vorobiov, Evgeny E."]
[Result "1/2-1/2"]
[ECO "D27"]
[WhiteElo "2590"]
[BlackElo "2578"]
[Annotator "ChessBase"]
[PlyCount "20"]
[EventDate "2019.08.02"]
[EventType "tourn"]
[EventCountry "GER"]
[SourceTitle "playchess.com"]
[Source "ChessBase"]
[SourceQuality "1"]
[TimeControl "40/5400+30:1800+30"]

1. d4 {[%emt 0:00:00]} d5 {[%emt 0:00:00]} 2. c4 {[%emt 0:00:00]} dxc4 {[%emt 0:00:00]} 3. e3 {[%emt 0:00:00]} Nf6 {[%emt 0:00:00]} 4. Bxc4 {[%emt 0:00:00]} e6 {[%emt 0:00:00]} 5. Nf3 {[%emt 0:00:05]} c5 {[%emt 0:00:00]} 6. O-O {[%emt 0:00:09]} a6 {[%emt 0:00:00]} 7. dxc5 {[%emt 0:00:17]} Qxd1 {[%emt 0:00:00]} 8. Rxd1 {[%emt 0:00:05]} Bxc5 {[%emt 0:00:00]} 9. Be2 {[%emt 0:00:11]} Nbd7 {[%emt 0:00:26]} 10. Nbd2 {[%emt 0:00:08]} b6 {[%emt 0:00:10]} 1/2-1/2

[Event "Lueneburger Schachfestival GM 2019"]
[Site "Lueneburg"]
[Date "2019.08.07"]
[Round "6.3"]
[White "Sriram, Jha"]
[Black "Polster, Christian"]
[Result "1/2-1/2"]
[ECO "E01"]
[WhiteElo "2381"]
[BlackElo "2254"]
[Annotator "NA"]
[PlyCount "122"]
[EventDate "2019.08.02"]
[EventType "tourn"]
[EventCountry "GER"]
[SourceTitle "playchess.com"]
[Source "ChessBase"]
[SourceQuality "1"]
[TimeControl "40/5400+30:1800+30"]

1. d4 {[%emt 0:00:26]} d5 {[%emt 0:00:00]} 2. c4 {[%emt 0:00:33]} e6 {[%emt 0:00:00]} 3. Nf3 {[%emt 0:00:15]} c6 {[%emt 0:00:39]} 4. Nbd2 {[%emt 0:02:49]} Nf6 {[%emt 0:02:25]} 5. g3 {[%emt 0:00:26]} Bd6 {[%emt 0:04:19]} 6. Bg2 {[%emt 0:00:05]} Nbd7 {[%emt 0:01:05]} 7. O-O {[%emt 0:00:21]} O-O {[%emt 0:00:47]} 8. Qc2 {[%emt 0:00:28]} h6 {[%emt 0:08:12]} 9. Rd1 {[%emt 0:02:50]} Qe7 {[%emt 0:06:01]} 10. b3 $11 {[%emt 0:04:19]} b6 {[%emt 0:05:51]} 11. Bb2 {[%emt 0:01:21]} Bb7 {[%emt 0:00:57]} 12. Ne5 {[%emt 0:23:47]} Rac8 {[%emt 0:07:07]} 13. Nxd7 {[%emt 0:02:23]} Nxd7 {[%emt 0:02:59]} 14. e4 {[%emt 0:00:27]} e5 {[%emt 0:14:43]} 15. exd5 {[%emt 0:14:02]} cxd5 {[%emt 0:11:30]} 16. Qf5 {[%emt 0:01:29]} Qe6 {[%emt 0:07:58]} 17. Bh3 {[%emt 0:12:59]} Rce8 {[%emt 0:02:25]} 18. Qxe6 {[%emt 0:02:09]} fxe6 {[%emt 0:00:04]} 19. cxd5 {[%emt 0:00:16]} Bxd5 {[%emt 0:01:00]} 20. Nc4 {[%emt 0:00:22]} Bxc4 {[%emt 0:01:27]} 21. bxc4 {[%emt 0:02:30]} exd4 {[%emt 0:06:33]} 22. Rxd4 {[%emt 0:04:54]} Be5 {[%emt 0:00:45]} 23. Rxd7 {[%emt 0:00:11]} Bxb2 {[%emt 0:00:07]} 24. Rb1 {[%emt 0:04:08]} Ba3 {[%emt 0:01:58]} 25. Rxa7 {[%emt 0:00:17]} Bc5 {[%emt 0:00:17]} 26. Rb2 {[%emt 0:00:46]} Rf7 {[%emt 0:02:05]} 27. Rxf7 {[%emt 0:00:31]} Kxf7 {[%emt 0:00:02]} 28. Rd2 {[%emt 0:00:20]} e5 {[%emt 0:04:20]} 29. Kf1 {[%emt 0:02:20]} e4 {[%emt 0:01:12]} 30. Bd7 {[%emt 0:04:57]} Re7 {[%emt 0:01:14]} 31. Bc6 {[%emt 0:00:14]} e3 {[%emt 0:01:17]} 32. Bd5+ {[%emt 0:01:03]} Kg6 {[%emt 0:00:39]} 33. fxe3 {[%emt 0:00:09]} Rxe3 {[%emt 0:00:37]} 34. a4 {[%emt 0:03:11]} Ra3 {[%emt 0:02:34]} 35. Bc6 {[%emt 0:00:02]} Rc3 {[%emt 0:01:39]} 36. Bb5 {[%emt 0:00:51]} Kf6 {[%emt 0:02:04]} 37. Kg2 {[%emt 0:00:22]} Ke6 {[%emt 0:00:50]} 38. Kh3 {[%emt 0:00:38]} Kf6 {[%emt 0:00:29]} 39. Kg4 {[%emt 0:00:15]} g6 {[%emt 0:00:31]} 40. Re2 {[%emt 0:01:59]} Re3 {[%emt 0:00:31]} 41. Rf2+ {[%emt 0:33:59]} Kg7 {[%emt 0:02:49]} 42. Rd2 {[%emt 0:00:00]} Kf6 {[%emt 0:02:25]} 43. Rd5 {[%emt 0:00:00]} Re5 {[%emt 0:02:41]} 44. Rd2 {[%emt 0:00:00]} Re3 {[%emt 0:01:59]} 45. Rf2+ {[%emt 0:00:00]} Kg7 {[%emt 0:00:15]} 46. Ra2 {[%emt 0:00:00]} h5+ {[%emt 0:04:13]} 47. Kh3 {[%emt 0:00:00]} g5 {[%emt 0:01:58]} 48. Rd2 {[%emt 0:00:00]} g4+ {[%emt 0:01:54]} 49. Kg2 {[%emt 0:00:00]} Re1 {[%emt 0:00:41]} 50. h4 {[%emt 0:00:00]} Rg1+ {[%emt 0:00:55]} 51. Kh2 {[%emt 0:00:00]} Rf1 {[%emt 0:00:47]} 52. Be8 {[%emt 0:00:00]} Kh6 {[%emt 0:00:19]} 53. Kg2 {[%emt 0:00:00]} Rg1+ {[%emt 0:00:12]} 54. Kh2 {[%emt 0:00:00]} Rf1 {[%emt 0:16:39]} 55. a5 bxa5 {[%emt 0:00:30]} 56. Bxh5 a4 {[%emt 0:00:30]} 57. Bxg4 a3 {[%emt 0:00:30]} 58. Be6 {[%emt 0:13:36]} Ra1 {[%emt 0:00:30]} 59. Bf5 {[%emt 0:00:30]} a2 60. Rd7 Rh1+ {[%emt 0:01:00]} 61. Kg2 Ra1 {[%emt 0:00:30]} 1/2-1/2

[Event "Lueneburger Schachfestival GM 2019"]
[Site "Lueneburg"]
[Date "2019.08.07"]
[Round "6.4"]
[White "Pajeken, Jakob Leon"]
[Black "Korley, Kassa"]
[Result "1-0"]
[ECO "D02"]
[WhiteElo "2314"]
[BlackElo "2437"]
[Annotator "ChessBase"]
[PlyCount "67"]
[EventDate "2019.08.02"]
[EventType "tourn"]
[EventCountry "GER"]
[SourceTitle "playchess.com"]
[Source "ChessBase"]
[SourceQuality "1"]
[TimeControl "40/5400+30:1800+30"]

1. d4 {[%emt 0:00:00]} Nf6 {[%emt 0:00:00]} 2. Nf3 {[%emt 0:00:00]} e6 {[%emt 0:00:11]} 3. Bf4 {[%emt 0:00:00]} d5 {[%emt 0:00:11]} 4. e3 {[%emt 0:00:05]} Bd6 {[%emt 0:00:02]} 5. c3 {[%emt 0:00:11]} O-O {[%emt 0:00:39]} 6. Nbd2 {[%emt 0:00:46]} c5 {[%emt 0:00:33]} 7. Bd3 {[%emt 0:01:46]} Nc6 {[%emt 0:00:26]} 8. Bg3 {[%emt 0:00:08]} h6 {[%emt 0:06:27]} 9. Qe2 {[%emt 0:01:22]} Re8 {[%emt 0:10:58]} 10. Ne5 {[%emt 0:02:59]} Qc7 {[%emt 0:02:58]} 11. Nxc6 {[%emt 0:06:10]} Bxg3 {[%emt 0:03:03]} 12. hxg3 {[%emt 0:00:27]} bxc6 {[%emt 0:00:03]} 13. dxc5 {[%emt 0:01:07]} e5 {[%emt 0:01:21]} 14. e4 {[%emt 0:02:40]} Qa5 {[%emt 0:05:07]} 15. b4 {[%emt 0:04:49]} Qa3 {[%emt 0:00:25]} 16. O-O {[%emt 0:03:45]} Qxc3 {[%emt 0:01:17]} 17. a3 {[%emt 0:01:00]} Bg4 {[%emt 0:00:38]} 18. f3 {[%emt 0:01:15]} Be6 {[%emt 0:10:46]} 19. Rfc1 {[%emt 0:00:52]} Qb2 {[%emt 0:00:29]} 20. exd5 {[%emt 0:15:26]} Qd4+ {[%emt 0:02:52]} 21. Kh2 {[%emt 0:02:17]} Bxd5 {[%emt 0:00:11]} 22. Rd1 {[%emt 0:02:26]} Kf8 {[%emt 0:05:54]} 23. Ne4 {[%emt 0:07:40]} Bb3 {[%emt 0:00:21]} 24. Ba6 {[%emt 0:02:54]} Bxd1 {[%emt 0:00:24]} 25. Rxd1 {[%emt 0:00:08]} Nxe4 {[%emt 0:00:12]} 26. Rxd4 {[%emt 0:00:16]} Nc3 {[%emt 0:00:04]} 27. Qd3 {[%emt 0:00:31]} exd4 {[%emt 0:00:03]} 28. Qxd4 {[%emt 0:00:06]} Nd5 {[%emt 0:00:49]} 29. Bb7 {[%emt 0:03:27]} Rad8 {[%emt 0:00:11]} 30. Bxc6 {[%emt 0:01:22]} Nf6 {[%emt 0:02:06]} 31. Qc3 {[%emt 0:00:32]} Re2 {[%emt 0:00:54]} 32. Bb5 {[%emt 0:00:50]} Rf2 {[%emt 0:00:09]} 33. c6 {[%emt 0:01:57]} Rdd2 {[%emt 0:00:06]} 34. c7 {[%emt 0:00:56]} 1-0

[Event "Lueneburger Schachfestival GM 2019"]
[Site "Lueneburg"]
[Date "2019.08.07"]
[Round "6.5"]
[White "Parvanyan, Ashot"]
[Black "Wachinger, Nikolas"]
[Result "1-0"]
[ECO "B90"]
[WhiteElo "2423"]
[BlackElo "2318"]
[Annotator "NA"]
[PlyCount "51"]
[EventDate "2019.08.02"]
[EventType "tourn"]
[EventCountry "GER"]
[SourceTitle "playchess.com"]
[Source "ChessBase"]
[SourceQuality "1"]
[TimeControl "40/5400+30:1800+30"]

1. e4 {[%emt 0:00:00]} c5 {[%emt 0:00:34]} 2. Nf3 {[%emt 0:00:03]} d6 {[%emt 0:00:20]} 3. d4 {[%emt 0:00:17]} Nf6 {[%emt 0:00:14]} 4. Nc3 {[%emt 0:00:06]} cxd4 {[%emt 0:00:06]} 5. Nxd4 {[%emt 0:00:07]} a6 {[%emt 0:00:16]} 6. Bd3 {[%emt 0:00:27]} Nc6 {[%emt 0:00:30]} 7. Nxc6 {[%emt 0:01:34]} bxc6 {[%emt 0:00:03]} 8. O-O {[%emt 0:00:38]} g6 {[%emt 0:02:03]} 9. Kh1 {[%emt 0:02:16]} Bg7 {[%emt 0:01:36]} 10. f4 {[%emt 0:00:49]} O-O {[%emt 0:02:08]} 11. f5 {[%emt 0:02:28]} Rb8 {[%emt 0:07:49]} 12. Qe1 {[%emt 0:02:38]} Nd7 {[%emt 0:04:08]} 13. Qh4 $11 {[%emt 0:16:27]} Ne5 {[%emt 0:11:07]} 14. Be2 {[%emt 0:05:12]} Re8 {[%emt 0:25:46]} 15. b3 {[%emt 0:07:08]} d5 {[%emt 0:09:02]} 16. Bb2 {[%emt 0:20:21]} gxf5 {[%emt 0:18:58]} 17. exf5 {[%emt 0:01:45]} Bf6 {[%emt 0:00:12]} 18. Qf4 {[%emt 0:06:33]} Qd6 {[%emt 0:03:15]} 19. a3 {[%emt 0:09:46]} Nd7 {[%emt 0:02:18]} 20. Qg4+ {[%emt 0:01:50]} Kh8 {[%emt 0:00:05]} 21. Rad1 {[%emt 0:03:41]} Qc5 {[%emt 0:04:35]} 22. b4 {[%emt 0:02:56]} Ne5 {[%emt 0:01:54]} 23. Qf4 {[%emt 0:03:11]} Qd6 {[%emt 0:00:24]} 24. Ne4 {[%emt 0:00:57]} Qc7 {[%emt 0:00:13]} 25. Ng5 {[%emt 0:00:34]} Rf8 {[%emt 0:00:42]} 26. Nf3 {[%emt 0:01:05]} 1-0